Workbook

Sheet Sheet1
A1: 2020年研究生学术创新基金分配表
A2: 学院 | B2: 硕士人数 （不含毕业生） | C2: 硕士人数比例 | D2: 金额（万元） | E2: 博士人数 （不含毕业生） | F2: 博士项目数量（个） | G2: 金额（万元）
A3: 法学院 | B3: 151 | C3: =B3/B23*100% -> 6.92% | D3: 6.1 | E3: 7 | F3: 1 | G3: 0.6
A4: 文学与新闻传播学院 | B4: 167 | C4: =B4/B23 -> 7.65% | D4: 6.7 | E4: 28 | F4: 5 | G4: 3
A5: 美术学院 | B5: 80 | C5: =B5/B23 -> 3.67% | D5: 3.2 | E5: 0
A6: 民族学与社会学学院 | B6: 160 | C6: =B6/B23 -> 7.33% | D6: 6.5 | E6: 35 | F6: 8 | G6: 4.8
A7: 外语学院 | B7: 64 | C7: =B7/B23 -> 2.93% | D7: 2.6 | E7: 0
A8: 经济学院 | B8: 140 | C8: =B8/B23 -> 6.42% | D8: 5.6 | E8: 15 | F8: 3 | G8: 1.8
A9: 管理学院 | B9: 187 | C9: =B9/B23 -> 8.57% | D9: 7.6 | E9: 0
A10: 公共管理学院 | B10: 64 | C10: =B10/B23 -> 2.93% | D10: 2.6 | E10: 0
A11: 计算机科学学院 | B11: 136 | C11: =B11/B23 -> 6.23% | D11: 5.5 | E11: 0
A12: 数学与统计学学院 | B12: 27 | C12: =B12/B23 -> 1.24% | D12: 1.1 | E12: 0
A13: 电子信息工程学院 | B13: 105 | C13: =B13/B23 -> 4.81% | D13: 4.2 | E13: 0
A14: 生物医学工程学院 | B14: 107 | C14: =B14/B23 -> 4.90% | D14: 4.3 | E14: 0
A15: 化学与材料科学学院 | B15: 183 | C15: =B15/B23 -> 8.39% | D15: 7.4 | E15: 0
A16: 生命科学学院 | B16: 132 | C16: =B16/B23 -> 6.05% | D16: 5.3 | E16: 0
A17: 药学院 | B17: 151 | C17: =B17/B23 -> 6.92% | D17: 6.1 | E17: 3
A18: 马克思主义学院 | B18: 78 | C18: =B18/B23 -> 3.57% | D18: 3.1 | E18: 0
A19: 体育学院 | B19: 20 | C19: =B19/B23 -> 0.92% | D19: 0.8 | E19: 0
A20: 音乐舞蹈学院 | B20: 64 | C20: =B20/B23 -> 2.93% | D20: 2.6 | E20: 0
A21: 教育学院 | B21: 103 | C21: =B21/B23 -> 4.72% | D21: 4.2 | E21: 16 | F21: 3 | G21: 1.8
A22: 资源与环境学院 | B22: 63 | C22: =B22/B23 -> 2.89% | D22: 2.5 | E22: 0
A23: 总计： | B23: 2182 | D23: 88 | E23: 104 | F23: 20 | G23: 12

Sheet Sheet2

Sheet Sheet3
